fUST/lending_fUST_20250912
["ID","MTS","AMOUNT","RATE_DAILY","PERIOD"]
[385127231,1757667837138,-10000.01,0.00012914,2]
[385127232,1757667837263,-10000.01,0.00012914,2]
[385127233,1757667837476,-10000.01,0.00012914,2]
[385127234,1757667842207,-4946.06,0.00012329,2]
[385127235,1757667842242,-107.89,0.00012785,2]
[385127236,1757667842326,-2749.37544049,0.00012785,2]
[385127237,1757667842348,-4501.25911902,0.00012785,2]
[385127238,1757667842605,-10000.01,0.00012914,2]
[385127239,1757667842628,-10000.01,0.00012914,2]
[385127240,1757667842726,-10000.01,0.00012914,2]
[385127241,1757667842852,-10000.01,0.00012914,2]
[385127242,1757667842996,-300.0,0.00012913,2]
[385127243,1757667843033,-9400.01,0.00012914,2]
[385127244,1757667843140,-10000.01,0.00012914,2]
[385127245,1757667843427,-10000.01,0.00012914,2]
[385127246,1757667843509,-10000.01,0.00012914,2]
[385127247,1757667860755,-4121.72,0.00012205,2]
[385127248,1757667860789,-1756.57,0.00012329,2]
[385127249,1757667860879,-2365.15,0.00012329,2]
[385127250,1757667860908,-1834.95,0.00012329,2]
[385127251,1757667860945,-1599.81,0.00012329,2]
[385127252,1757667860992,-49.60907311,0.00012914,2]
[385127253,1757667870772,2862.3,0.00012329,2]
[385127254,1757667873156,204.12988113,0.00012914,2]
[385127255,1757667873867,293.21146865,0.00012884,2]
[385127256,1757667881227,2385.25,0.00012329,2]
[385127257,1757667882484,293.21146865,0.00012884,2]
[385127258,1757667891848,1987.71,0.00012329,2]
[385127259,1757667898456,293.21146865,0.00012884,2]
[385127260,1757667902352,1581.7675667,0.00012329,2]
[385127261,1757667902374,74.6624333,0.00012329,2]
[385127262,1757667908233,293.21146865,0.00012884,2]
[385127263,1757667912758,1380.36,0.00012329,2]
[385127264,1757667919524,293.21146865,0.00012914,2]
[385127265,1757667922596,159.0,7.8e-07,2]
[385127266,1757667923147,1150.3,0.00012329,2]
[385127267,1757667923658,159.0,7.8e-07,2]
[385127268,1757667924946,159.0,7.8e-07,2]
[385127269,1757667933503,600.0,0.00012908,2]
[385127270,1757667933541,958.58,0.00012329,2]
[385127271,1757667943961,798.82,0.00012329,2]
[385127272,1757667954364,665.68,0.00012329,2]
[385127273,1757667955905,600.0,0.00012908,2]
[385127274,1757667964750,554.73,0.00012329,2]
[385127275,1757667975182,462.28,0.00012329,2]
[385127276,1757667979131,600.0,0.00012908,2]
[385127277,1757667985711,385.23,0.00012329,2]
[385127278,1757667985884,705.9446294,0.00012561,2]
[385127279,1757667985907,9294.0553706,0.00012561,2]
[385127280,1757667996138,321.03,0.00012329,2]
[385127281,1757668001570,384.9246294,0.00012908,2]
[385127282,1757668001594,215.0753706,0.00012908,2]
[385127283,1757668006410,267.52,0.00012329,2]
[385127284,1757668016890,2000.0,0.00012561,2]
[385127285,1757668017052,222.93,0.00012329,2]
[385127286,1757668024233,600.0,0.00012908,2]
[385127287,1757668027469,185.78,0.00012329,2]
[385127290,1757668038215,154.82,0.00012329,2]
[385127291,1757668046701,600.0,0.00012908,2]
[385127292,1757668048961,774.1,0.00012329,2]
[385127296,1757668069637,600.0,0.00012908,2]
[385127297,1757668093078,600.0,0.00012908,2]
[385127298,1757668109929,600.0,0.00012908,2]
[385127299,1757668134244,600.0,0.00012908,2]
[385127300,1757668143187,278.295402,0.00012871,2]
[385127301,1757668143722,306.79541342,0.00012872,2]
[385127302,1757668157958,600.0,0.00012908,2]
[385127303,1757668181330,600.0,0.00012908,2]
[385127304,1757668204447,600.0,0.00012908,2]
[385127305,1757668226706,194.69381398,0.00012908,2]
[385127306,1757668226731,405.30618602,0.00012908,2]
[385127363,1757668231795,-600.0,0.00013038,2]
[385127365,1757668231805,-600.0,0.0001317,2]
[385127367,1757668231814,-166.66666667,0.00013172,2]
[385127369,1757668231824,-1200.0,0.00013269,2]
[385127371,1757668231833,-300.0,0.00013269,2]
[385127373,1757668231842,-300.0,0.00013269,2]
[385127375,1757668231852,-1200.0,0.00013269,2]
[385127378,1757668231861,-183.46391554,0.0001327,2]
[385127380,1757668231870,-500.0,0.0001327,2]
[385127382,1757668231879,-500.0,0.0001327,2]
[385127384,1757668231889,-412.86126585,0.0001327,2]
[385127386,1757668231898,-344.23576583,0.0001327,2]
[385127388,1757668231908,-8243.04613374,0.0001327,2]
[385127390,1757668231919,-5945.01497575,0.0001327,2]
[385127392,1757668231931,-21841.51277881,0.0001327,2]
[385127395,1757668231943,-13970.4261117,0.0001327,2]
[385127397,1757668231953,-224.54155205,0.000134,2]
[385127399,1757668231962,-1348.79735012,0.000135,2]
[385127401,1757668231972,-5548.49441243,0.000135,2]
[385127403,1757668231981,-300.0,0.00013536,2]
[385127405,1757668231990,-300.0,0.00013536,2]
[385127407,1757668231999,-300.0,0.00013536,2]
[385127409,1757668232010,-300.0,0.00013536,2]
[385127411,1757668232019,-300.0,0.00013536,2]
[385127412,1757668232031,-300.0,0.00013536,2]
[385127415,1757668232041,-300.0,0.00013536,2]
[385127417,1757668232051,-300.0,0.00013536,2]
[385127419,1757668232060,-300.0,0.00013536,2]
[385127421,1757668232069,-300.0,0.00013536,2]
[385127422,1757668232079,-300.0,0.00013536,2]
[385127424,1757668232089,-300.0,0.00013536,2]
[385127427,1757668232099,-300.0,0.00013536,2]
[385127428,1757668232108,-300.0,0.00013536,2]
[385127430,1757668232117,-300.0,0.00013536,2]
[385127433,1757668232126,-500.0,0.00013573,2]
[385127434,1757668232135,-500.0,0.00013573,2]
[385127437,1757668232145,-500.0,0.00013573,2]
[385127438,1757668232154,-500.0,0.00013573,2]
[385127440,1757668232163,-471.11808493,0.00013573,2]
[385127443,1757668232173,-500.0,0.00013573,2]
[385127445,1757668232183,-500.0,0.00013573,2]
[385127446,1757668232194,-500.0,0.00013573,2]
[385127449,1757668232205,-160.08160613,0.00013573,2]
[385127451,1757668232216,-2030.296672,0.0001359,2]
[385127453,1757668232225,-179.6337029,0.00013597,2]
[385127455,1757668232234,-215.54720705,0.00013597,2]
[385127457,1757668232244,-73290.67157121,0.00013598,2]
[385127459,1757668232257,-1691.59999,0.00013598,2]
[385127461,1757668232268,-828.55550342,0.00013598,2]
[385127463,1757668232280,-601.76368681,0.00013598,2]
[385127465,1757668232291,-8779.77929623,0.00013598,2]
[385127468,1757668232301,-5495.61677247,0.00013598,2]
[385127472,1757668234599,600.0,0.00012908,2]
[385127480,1757668237681,-940.8800004,0.00013598,2]
[385127481,1757668237694,-278371.13317946,0.00013598,2]
[385127482,1757668237704,-151.0,0.000136,2]
[385127483,1757668237714,-1348.79735009,0.00013625,2]
[385127484,1757668237724,-4334.49484174,0.00013648,2]
[385127485,1757668237734,-501.30639272,0.00013673,2]
[385127486,1757668237744,-542.03954474,0.00013673,2]
[385127487,1757668237753,-500.0,0.00013673,2]
[385127488,1757668237762,-639.1747751,0.00013673,2]
[385127489,1757668237772,-500.0,0.00013673,2]
[385127490,1757668237781,-500.0,0.00013673,2]
[385127491,1757668237791,-500.0,0.00013673,2]
[385127492,1757668237801,-500.0,0.00013673,2]
[385127493,1757668237811,-500.0,0.00013673,2]
[385127494,1757668237820,-500.0,0.00013673,2]
[385127495,1757668237830,-500.0,0.00013673,2]
[385127496,1757668237839,-500.0,0.00013673,2]
[385127497,1757668237848,-500.0,0.00013673,2]
[385127498,1757668237857,-500.0,0.00013673,2]
[385127499,1757668237867,-500.0,0.00013673,2]
[385127500,1757668237876,-500.0,0.00013673,2]
[385127501,1757668237885,-500.0,0.00013673,2]
[385127502,1757668237894,-500.0,0.00013673,2]
[385127503,1757668237904,-500.43853504,0.00013673,2]
[385127504,1757668237913,-500.0,0.00013673,2]
[385127505,1757668237922,-168.06676321,0.00013673,2]
[385127506,1757668237931,-258.37405019,0.00013673,2]
[385127507,1757668237941,-507.30832891,0.00013673,2]
[385127508,1757668237950,-503.3941154,0.00013673,2]
[385127509,1757668237959,-500.0,0.00013673,2]
[385127510,1757668237968,-295.22863629,0.00013673,2]
[385127511,1757668237977,-500.0,0.00013673,2]
[385127512,1757668237986,-14812.36988539,0.0001369,2]
[385127513,1757668237995,-217.38167397,0.0001369,2]
[385127514,1757668238004,-277.15210816,0.00013698,2]
[385127515,1757668238013,-480.0,0.00013698,2]
[385127516,1757668238022,-209.38653475,0.00013698,2]
[385127517,1757668238032,-480.0,0.00013698,2]
[385127518,1757668238041,-480.0,0.00013698,2]
[385127519,1757668238050,-484.91629434,0.00013698,2]
[385127520,1757668238061,-480.0,0.00013698,2]
[385127521,1757668238069,-537.70287497,0.00013698,2]
[385127522,1757668238079,-480.0,0.00013698,2]
[385127523,1757668238087,-480.0,0.00013698,2]
[385127524,1757668238096,-487.36226338,0.00013698,2]
[385127525,1757668238105,-492.13407604,0.00013698,2]
[385127526,1757668238115,-480.0,0.00013698,2]
[385127527,1757668238123,-480.0,0.00013698,2]
[385127528,1757668238278,-480.0,0.00013698,2]
[385127529,1757668238291,-369.4033403,0.00013698,2]
[385127530,1757668238303,-480.0,0.00013698,2]
[385127531,1757668238314,-480.0,0.00013698,2]
[385127532,1757668238323,-480.0,0.00013698,2]
[385127533,1757668238333,-238.11094802,0.00013698,2]
[385127534,1757668238343,-480.0,0.00013698,2]
[385127535,1757668238352,-480.0,0.00013698,2]
[385127536,1757668238361,-482.9095256,0.00013698,2]
[385127537,1757668238370,-480.0,0.00013698,2]
[385127538,1757668238379,-480.0,0.00013698,2]
[385127539,1757668238388,-480.0,0.00013698,2]
[385127540,1757668238399,-480.0,0.00013698,2]
[385127541,1757668238409,-480.0,0.00013698,2]
[385127542,1757668238419,-480.0,0.00013698,2]
[385127543,1757668238428,-480.0,0.00013698,2]
[385127544,1757668238437,-480.0,0.00013698,2]
[385127545,1757668238446,-480.0,0.00013698,2]
[385127546,1757668238455,-480.0,0.00013698,2]
[385127547,1757668238466,-480.0,0.00013698,2]
[385127548,1757668238475,-388.52995406,0.00013698,2]
[385127549,1757668238484,-480.0,0.00013698,2]
[385127550,1757668238494,-480.0,0.00013698,2]
[385127551,1757668238503,-480.0,0.00013698,2]
[385127552,1757668238513,-480.0,0.00013698,2]
[385127553,1757668238523,-480.0,0.00013698,2]
[385127554,1757668238532,-480.0,0.00013698,2]
[385127555,1757668238544,-480.0,0.00013698,2]
[385127556,1757668238554,-480.88007414,0.00013698,2]
[385127557,1757668238564,-276.3920233,0.00013698,2]
[385127558,1757668238573,-491.61909584,0.00013698,2]
[385127559,1757668238583,-480.0,0.00013698,2]
[385127560,1757668238592,-480.0,0.00013698,2]
[385127561,1757668238602,-480.0,0.00013698,2]
[385127562,1757668238613,-480.0,0.00013698,2]
[385127563,1757668238623,-480.0,0.00013698,2]
[385127564,1757668238632,-480.0,0.00013698,2]
[385127565,1757668238643,-480.0,0.00013698,2]
[385127566,1757668238652,-480.0,0.00013698,2]
[385127567,1757668238662,-480.0,0.00013698,2]
[385127568,1757668238672,-480.0,0.00013698,2]
[385127569,1757668238682,-480.0,0.00013698,2]
[385127570,1757668238693,-480.0,0.00013698,2]
[385127571,1757668238703,-480.0,0.00013698,2]
[385127572,1757668238712,-480.0,0.00013698,2]
[385127573,1757668238722,-480.0,0.00013698,2]
[385127574,1757668238730,-480.0,0.00013698,2]
[385127575,1757668238740,-480.0,0.00013698,2]
[385127576,1757668238752,-426.29197751,0.00013698,2]
[385127577,1757668238763,-483.18616691,0.00013698,2]
[385127578,1757668238772,-480.0,0.00013698,2]
[385127579,1757668238783,-480.0,0.00013698,2]
[385127580,1757668238792,-480.0,0.00013698,2]
[385127581,1757668238802,-480.0,0.00013698,2]
[385127582,1757668238811,-483.23740924,0.00013698,2]
[385127583,1757668238823,-481.93309428,0.00013698,2]
[385127584,1757668238832,-482.03354135,0.00013698,2]
[385127585,1757668238842,-480.0,0.00013698,2]
[385127586,1757668238852,-482.66831065,0.00013698,2]
[385127587,1757668238862,-481.52549031,0.00013698,2]
[385127588,1757668238871,-486.07950589,0.00013698,2]
[385127589,1757668238881,-480.0,0.00013698,2]
[385127590,1757668238890,-480.0,0.00013698,2]
[385127591,1757668238899,-480.0,0.00013698,2]
[385127592,1757668238908,-480.0,0.00013698,2]
[385127593,1757668238918,-480.0,0.00013698,2]
[385127594,1757668238928,-480.0,0.00013698,2]
[385127595,1757668238937,-480.0,0.00013698,2]
[385127596,1757668238947,-480.0,0.00013698,2]
[385127597,1757668238957,-482.39378484,0.00013698,2]
[385127598,1757668238966,-480.0,0.00013698,2]
[385127599,1757668238976,-232.51069455,0.00013698,2]
[385127600,1757668238986,-483.448295,0.00013698,2]
[385127601,1757668238995,-480.0,0.00013698,2]
[385127602,1757668239005,-480.0,0.00013698,2]
[385127603,1757668239014,-480.0,0.00013698,2]
[385127604,1757668239024,-480.0,0.00013698,2]
[385127605,1757668239033,-480.0,0.00013698,2]
[385127606,1757668239042,-480.0,0.00013698,2]
[385127607,1757668239052,-480.0,0.00013698,2]
[385127608,1757668239061,-480.0,0.00013698,2]
[385127609,1757668239070,-480.0,0.00013698,2]
[385127610,1757668239081,-480.0,0.00013698,2]
[385127611,1757668239090,-481.66034303,0.00013698,2]
[385127612,1757668239099,-201.83880755,0.00013698,2]
[385127613,1757668239108,-480.0,0.00013698,2]
[385127614,1757668239118,-413.92213104,0.00013698,2]
[385127615,1757668239128,-480.0,0.00013698,2]
[385127616,1757668239137,-480.0,0.00013698,2]
[385127617,1757668239148,-480.0,0.00013698,2]
[385127618,1757668239157,-497.36943673,0.00013698,2]
[385127619,1757668239166,-480.0,0.00013698,2]
[385127620,1757668239175,-445.27966066,0.00013698,2]
[385127621,1757668239185,-480.0,0.00013698,2]
[385127622,1757668239195,-480.0,0.00013698,2]
[385127623,1757668239204,-480.0,0.00013698,2]
[385127624,1757668239213,-480.0,0.00013698,2]
[385127625,1757668239222,-480.0,0.00013698,2]
[385127626,1757668239231,-480.0,0.00013698,2]
[385127627,1757668239240,-480.0,0.00013698,2]
[385127628,1757668239249,-480.0,0.00013698,2]
[385127629,1757668239258,-485.45406545,0.00013698,2]
[385127630,1757668239267,-480.0,0.00013698,2]
[385127631,1757668239276,-480.0,0.00013698,2]
[385127632,1757668239285,-480.0,0.00013698,2]
[385127633,1757668239294,-480.0,0.00013698,2]
[385127634,1757668239303,-480.0,0.00013698,2]
[385127635,1757668239312,-491.68037537,0.00013698,2]
[385127636,1757668239321,-480.0,0.00013698,2]
[385127637,1757668239330,-480.0,0.00013698,2]
[385127638,1757668239339,-484.24602464,0.00013698,2]
[385127639,1757668239349,-487.01326893,0.00013698,2]
[385127640,1757668239358,-480.0,0.00013698,2]
[385127641,1757668239367,-480.0,0.00013698,2]
[385127642,1757668239377,-480.0,0.00013698,2]
[385127643,1757668239386,-480.0,0.00013698,2]
[385127644,1757668239395,-480.0,0.00013698,2]
[385127645,1757668239405,-480.0,0.00013698,2]
[385127646,1757668239415,-480.0,0.00013698,2]
[385127647,1757668239424,-480.0,0.00013698,2]
[385127648,1757668239433,-482.56581299,0.00013698,2]
[385127649,1757668239443,-480.0,0.00013698,2]
[385127650,1757668239452,-480.0,0.00013698,2]
[385127652,1757668239462,-481.90804806,0.00013698,2]
[385127653,1757668239471,-485.00265771,0.00013698,2]
[385127654,1757668239481,-480.0,0.00013698,2]
[385127655,1757668239490,-480.0,0.00013698,2]
[385127656,1757668239500,-480.0,0.00013698,2]
[385127657,1757668239510,-480.0,0.00013698,2]
[385127658,1757668239519,-480.0,0.00013698,2]
[385127659,1757668239529,-480.0,0.00013698,2]
[385127660,1757668239538,-480.0,0.00013698,2]
[385127661,1757668239548,-198.77364617,0.00013698,2]
[385127662,1757668239559,-480.0,0.00013698,2]
[385127663,1757668239568,-480.0,0.00013698,2]
[385127664,1757668239578,-480.0,0.00013698,2]
[385127665,1757668239588,-480.0,0.00013698,2]
[385127666,1757668239597,-480.0,0.00013698,2]
[385127667,1757668239607,-480.0,0.00013698,2]
[385127668,1757668239616,-482.39717279,0.00013698,2]
[385127669,1757668239625,-480.0,0.00013698,2]
[385127670,1757668239635,-487.12324655,0.00013698,2]
[385127671,1757668239644,-480.0,0.00013698,2]
[385127672,1757668239653,-480.0,0.00013698,2]
[385127673,1757668239663,-480.0,0.00013698,2]
[385127675,1757668239672,-480.0,0.00013698,2]
[385127676,1757668239681,-486.48237104,0.00013698,2]
[385127677,1757668239691,-481.1776793,0.00013698,2]
[385127678,1757668239701,-480.0,0.00013698,2]
[385127679,1757668239710,-484.62279304,0.00013698,2]
[385127680,1757668239719,-480.0,0.00013698,2]
[385127682,1757668239728,-480.0,0.00013698,2]
[385127684,1757668239738,-480.0,0.00013698,2]
[385127686,1757668239747,-480.0,0.00013698,2]
[385127688,1757668239756,-489.81986851,0.00013698,2]
[385127690,1757668239766,-490.16835222,0.00013698,2]
[385127693,1757668239775,-480.0,0.00013698,2]
[385127694,1757668239784,-480.0,0.00013698,2]
[385127696,1757668239794,-480.0,0.00013698,2]
[385127698,1757668239804,-480.0,0.00013698,2]
[385127700,1757668239814,-480.0,0.00013698,2]
[385127702,1757668239823,-480.0,0.00013698,2]
[385127703,1757668239832,-248.97963686,0.00013698,2]
[385127704,1757668239841,-157.0,0.00013698,2]
[385127705,1757668239850,-480.0,0.00013698,2]
[385127706,1757668239859,-500.0,0.00013698,2]
[385127707,1757668239867,-480.0,0.00013698,2]
[385127708,1757668239878,-480.0,0.00013698,2]
[385127709,1757668239887,-157.0,0.00013698,2]
[385127710,1757668239897,-480.0,0.00013698,2]
[385127711,1757668239906,-157.0,0.00013698,2]
[385127712,1757668239915,-157.0,0.00013698,2]
[385127713,1757668239925,-157.0,0.00013698,2]
[385127714,1757668239935,-480.0,0.00013698,2]
[385127715,1757668239944,-480.0,0.00013698,2]
[385127716,1757668239953,-480.0,0.00013698,2]
[385127717,1757668239963,-480.0,0.00013698,2]
[385127718,1757668239974,-480.0,0.00013698,2]
[385127719,1757668239984,-488.21204967,0.00013698,2]
[385127720,1757668239993,-480.0,0.00013698,2]
[385127721,1757668240003,-480.0,0.00013698,2]
[385127722,1757668240012,-489.58326246,0.00013698,2]
[385127724,1757668240021,-484.92453631,0.00013698,2]
[385127726,1757668240030,-480.0,0.00013698,2]
[385127728,1757668240039,-484.69050205,0.00013698,2]
[385127730,1757668240049,-480.0,0.00013698,2]
[385127732,1757668240059,-480.0,0.00013698,2]
[385127734,1757668240069,-486.00297298,0.00013698,2]
[385127736,1757668240079,-480.0,0.00013698,2]
[385127738,1757668240089,-480.0,0.00013698,2]
[385127740,1757668240098,-480.0,0.00013698,2]
[385127742,1757668240108,-480.0,0.00013698,2]
[385127744,1757668240117,-480.0,0.00013698,2]
[385127746,1757668240126,-480.0,0.00013698,2]
[385127748,1757668240135,-480.0,0.00013698,2]
[385127750,1757668240145,-480.0,0.00013698,2]
[385127752,1757668240154,-480.0,0.00013698,2]
[385127754,1757668240163,-480.0,0.00013698,2]
[385127756,1757668240173,-480.0,0.00013698,2]
[385127758,1757668240182,-480.0,0.00013698,2]
[385127760,1757668240192,-480.0,0.00013698,2]
[385127762,1757668240202,-485.7811213,0.00013698,2]
[385127764,1757668240211,-480.0,0.00013698,2]
[385127766,1757668240220,-480.0,0.00013698,2]
[385127768,1757668240229,-480.0,0.00013698,2]
[385127770,1757668240238,-480.0,0.00013698,2]
[385127772,1757668240248,-483.39272109,0.00013698,2]
[385127774,1757668240257,-480.0,0.00013698,2]
[385127776,1757668240266,-480.0,0.00013698,2]
[385127778,1757668240275,-490.22059249,0.00013698,2]
[385127780,1757668240284,-480.0,0.00013698,2]
[385127782,1757668240293,-548.83373958,0.00013698,2]
[385127784,1757668240302,-480.0,0.00013698,2]
[385127786,1757668240312,-480.0,0.00013698,2]
[385127788,1757668240321,-480.0,0.00013698,2]
[385127790,1757668240330,-326.85238249,0.00013698,2]
[385127792,1757668240339,-480.0,0.00013698,2]
[385127794,1757668240348,-480.0,0.00013698,2]
[385127796,1757668240357,-582.83323739,0.00013698,2]
[385127798,1757668240367,-480.0,0.00013698,2]
[385127800,1757668240376,-480.0,0.00013698,2]
[385127802,1757668240385,-483.49735075,0.00013698,2]
[385127803,1757668240395,-480.0,0.00013698,2]
[385127806,1757668240405,-969.46,0.00013698,2]
[385127808,1757668240414,-969.46,0.00013698,2]
[385127810,1757668240424,-969.46,0.00013698,2]
[385127812,1757668240433,-969.46,0.00013698,2]
[385127814,1757668240442,-969.46,0.00013698,2]
[385127815,1757668240452,-969.46,0.00013698,2]
[385127817,1757668240461,-969.46,0.00013698,2]
[385127820,1757668240471,-969.46,0.00013698,2]
[385127821,1757668240480,-969.46,0.00013698,2]
[385127823,1757668240490,-969.46,0.00013698,2]
[385127825,1757668240499,-567.95123225,0.00013698,2]
[385127827,1757668240508,-969.46,0.00013698,2]
[385127829,1757668240517,-969.46,0.00013698,2]
[385127831,1757668240526,-480.0,0.00013698,2]
[385127833,1757668240536,-484.59805901,0.00013698,2]
[385127835,1757668240545,-316.56584568,0.00013698,2]
[385127837,1757668240554,-480.0,0.00013698,2]
[385127839,1757668240563,-480.0,0.00013698,2]
[385127841,1757668240573,-480.0,0.00013698,2]
[385127843,1757668240582,-480.0,0.00013698,2]
[385127845,1757668240591,-480.0,0.00013698,2]
[385127847,1757668240600,-480.0,0.00013698,2]
[385127849,1757668240609,-480.0,0.00013698,2]
[385127851,1757668240619,-480.0,0.00013698,2]
[385127853,1757668240628,-480.0,0.00013698,2]
[385127855,1757668240638,-480.0,0.00013698,2]
[385127857,1757668240647,-339.95536238,0.00013698,2]
[385127859,1757668240655,-544.5450975,0.00013698,2]
[385127861,1757668240664,-480.0,0.00013698,2]
[385127863,1757668240673,-480.0,0.00013698,2]
[385127865,1757668240682,-488.80936073,0.00013698,2]
[385127867,1757668240691,-480.0,0.00013698,2]
[385127869,1757668240701,-215.07202585,0.00013698,2]
[385127871,1757668240710,-504.81780725,0.00013698,2]
[385127873,1757668240719,-480.0,0.00013698,2]
[385127885,1757668240828,-480.0,0.00013698,2]
[385127887,1757668240838,-480.0,0.00013698,2]
[385127889,1757668240847,-480.0,0.00013698,2]
[385127891,1757668240857,-480.0,0.00013698,2]
[385127893,1757668240866,-480.0,0.00013698,2]
[385127895,1757668240876,-480.0,0.00013698,2]
[385127897,1757668240886,-629.14060203,0.00013698,2]
[385127899,1757668240897,-480.0,0.00013698,2]
[385127901,1757668240907,-480.0,0.00013698,2]
[385127903,1757668240916,-480.0,0.00013698,2]
[385127905,1757668240926,-480.0,0.00013698,2]
[385127907,1757668240936,-480.0,0.00013698,2]
[385127909,1757668240946,-482.63726045,0.00013698,2]
[385127911,1757668240956,-480.0,0.00013698,2]
[385127913,1757668240965,-483.89271582,0.00013698,2]
[385127915,1757668240974,-485.88555419,0.00013698,2]
[385127917,1757668240983,-496.76054226,0.00013698,2]
[385127919,1757668240992,-480.0,0.00013698,2]
[385127921,1757668241001,-480.0,0.00013698,2]
[385127923,1757668241010,-491.02977824,0.00013698,2]
[385127925,1757668241020,-480.0,0.00013698,2]
[385127927,1757668241029,-480.0,0.00013698,2]
[385127929,1757668241038,-510.99289691,0.00013698,2]
[385127931,1757668241047,-480.92252946,0.00013698,2]
[385127933,1757668241057,-486.61803177,0.00013698,2]
[385127935,1757668241066,-480.0,0.00013698,2]
[385127937,1757668241075,-480.0,0.00013698,2]
[385127939,1757668241085,-480.0,0.00013698,2]
[385127941,1757668241095,-480.0,0.00013698,2]
[385127943,1757668241105,-482.74554229,0.00013698,2]
[385127945,1757668241115,-526.20638479,0.00013698,2]
[385127947,1757668241124,-486.06725576,0.00013698,2]
[385127949,1757668241133,-480.0,0.00013698,2]
[385127951,1757668241143,-480.0,0.00013698,2]
[385127953,1757668241152,-480.0,0.00013698,2]
[385127955,1757668241162,-482.80465601,0.00013698,2]
[385127957,1757668241171,-480.0,0.00013698,2]
[385127959,1757668241180,-480.0,0.00013698,2]
[385127961,1757668241189,-480.0,0.00013698,2]
[385127963,1757668241199,-480.0,0.00013698,2]
[385127965,1757668241207,-482.67057599,0.00013698,2]
[385127967,1757668241216,-480.0,0.00013698,2]
[385127969,1757668241225,-480.0,0.00013698,2]
[385127971,1757668241234,-480.0,0.00013698,2]
[385127973,1757668241243,-485.55161186,0.00013698,2]
[385127975,1757668241253,-480.0,0.00013698,2]
[385127977,1757668241262,-480.0,0.00013698,2]
[385127979,1757668241271,-480.0,0.00013698,2]
[385127981,1757668241280,-486.47111963,0.00013698,2]
[385127983,1757668241288,-480.0,0.00013698,2]
[385127985,1757668241297,-480.0,0.00013698,2]
[385127987,1757668241307,-480.0,0.00013698,2]
[385127988,1757668241316,-480.0,0.00013698,2]
[385127991,1757668241326,-480.0,0.00013698,2]
[385127993,1757668241335,-480.0,0.00013698,2]
[385127995,1757668241344,-497.63353495,0.00013698,2]
[385127997,1757668241355,-480.0,0.00013698,2]
[385127999,1757668241364,-294.29643247,0.00013698,2]
[385128001,1757668241373,-480.0,0.00013698,2]
[385128003,1757668241382,-480.0,0.00013698,2]
[385128004,1757668241391,-480.0,0.00013698,2]
[385128007,1757668241402,-481.03224117,0.00013698,2]
[385128009,1757668241411,-480.0,0.00013698,2]
[385128010,1757668241421,-480.0,0.00013698,2]
[385128013,1757668241430,-487.74190289,0.00013698,2]
[385128015,1757668241440,-480.0,0.00013698,2]
[385128017,1757668241449,-480.0,0.00013698,2]
[385128019,1757668241459,-480.0,0.00013698,2]
[385128020,1757668241468,-480.0,0.00013698,2]
[385128022,1757668241477,-480.0,0.00013698,2]